Workbook

Sheet Меню младшие 1-4 кл
A12: № рецептуры | B12: Наименование блюд | C12: Выход,г | D12: Белки, г | E12: Жиры, г | F12: Углеводы, г | G12: Калорийность, ккал | H12: Витамин B1, мг | I12: Витамин С, мг | J12: Витамин А, мг | K12: Витамин Е, мг | L12: Ca, мг | M12: P, мг | N12: Mg, мг | O12: Fe, мг
B13: 1-ая неделя
B14: 1 день
A15: ТТК | B15: Котлета из мяса птицы | C15: 90 | D15: 10.20 | E15: 12.93 | F15: 13.79 | G15: 198.00 | H15: 0.09 | I15: 0.94 | J15: 46.26 | K15: 2.52 | L15: 47.83 | M15: 85.09 | N15: 18.72 | O15: 1.26
A16: № 203 Сбор.рец. На прод-ию для обуч. Во всех образ.учреж-Дели 2017 | B16: Макаронные изделия отварные с маслом сливочным | C16: 150/5 | D16: 5.70 | E16: 4.30 | F16: 31.99 | G16: 189.30 | H16: 0.06 | I16: 0.00 | J16: 20.00 | K16: 0.82 | L16: 12.39 | M16: 38.67 | N16: 8.62 | O16: 0.86
A17: №349 Сбор.рец. На прод-ию для обуч. Во всех образ.учреж-Дели 2017 | B17: Компот из сухофруктов (75С) | C17: 200 | D17: 0.66 | E17: 0.09 | F17: 22.03 | G17: 92.80 | H17: 0.02 | I17: 0.73 | J17: 0.00 | K17: 0.51 | L17: 32.18 | M17: 23.44 | N17: 17.46 | O17: 0.67
A18: №421 Сбор.рец. На прод-ию для обуч. Во всех образ.учреж-Дели 2017 | B18: Сдоба обыкновенная | C18: 60 | D18: 1.64 | E18: 2.36 | F18: 8.15 | G18: 77.00 | H18: 0.07 | J18: 13.00 | K18: 0.69 | L18: 11.00 | M18: 37.00 | N18: 14.50 | O18: 0.69
A19: Хим.состав и калорийность российских продуктов питания,табл 6, стр 144 , 2012 Дели + | B19: Хлеб ржаной | C19: 30 | D19: 1.98 | E19: 0.36 | F19: 11.88 | G19: 59.40 | H19: 0.05 | I19: 0.00 | J19: 0.00 | K19: 0.42 | L19: 8.70 | M19: 45.00 | N19: 14.10 | O19: 1.17
B20: Итого: | C20: 535 | D20: =SUM(D15:D19) -> 20.18 | E20: =SUM(E15:E19) -> 20.04 | F20: =SUM(F15:F19) -> 87.84 | G20: 616.50 | H20: 0.28 | I20: 1.66 | J20: 79.26 | K20: 4.96 | L20: 112.10 | M20: 229.19 | N20: 73.40 | O20: 4.65 | P20: 25%
B22: 2 день
A23: Хим.состав и калорийность российских продуктов питания табл 9 стр 184 , 2012 Дели + | B23: Плоды и ягоды свежие (яблоки) | C23: 100 | D23: 0.40 | E23: 0.40 | F23: 9.80 | G23: 47.00 | H23: 0.03 | I23: 10.00 | K23: 0.20 | L23: 16.00 | M23: 11.00 | N23: 9.00 | O23: 2.20
A24: № 175,219 Сбор.рец. На прод-ию для обуч. Во всех образ.учреж-Дели 2017 | B24: Сырники из творога с молочной кашей "Дружба" | C24: 50/150 | D24: 12.92 | E24: 14.39 | F24: 31.09 | G24: 292.26 | H24: 0.11 | I24: 0.85 | J24: 51.58 | K24: 1.52 | L24: 178.25 | M24: 229.27 | N24: 39.46 | O24: 0.94
A25: № 376 Сбор.рец. На прод-ию для обуч. Во всех образ.учреж-Дели 2017 | B25: Чай с сахаром | C25: 190/10 | D25: 0.07 | E25: 0.02 | F25: 10.01 | G25: 40.00 | H25: 0.00 | I25: 0.03 | J25: 0.00 | K25: 0.00 | L25: 10.95 | M25: 2.80 | N25: 1.40 | O25: 0.27
A26: Хим.состав и калорийность российских продуктов питания,табл 6, стр 144 , 2012 Дели + | B26: Хлеб ржаной | C26: 40 | D26: 2.64 | E26: 0.48 | F26: 15.84 | G26: 79.20 | H26: 0.07 | I26: 0.00 | J26: 0.00 | K26: 0.56 | L26: 11.60 | M26: 60.00 | N26: 18.80 | O26: 1.56
B27: Итого: | C27: 540 | D27: =SUM(D23:D26) -> 16.03 | E27: 15.29 | F27: 66.74 | G27: 458.46 | H27: 0.20 | I27: 10.88 | J27: 51.58 | K27: 2.28 | L27: 216.80 | M27: 303.07 | N27: 68.66 | O27: 4.96 | P27: 20%
B30: 3 день
A31: № 260 Сбор.рец. На прод-ию для обуч. Во всех образ.учреж-Дели -2017 | B31: Гуляш из говядины | C31: 50/50 | D31: 10.39 | E31: 14.79 | F31: 10.30 | G31: 221.00 | H31: 0.03 | I31: 0.92 | K31: 2.61 | L31: 21.81 | M31: 154.15 | N31: 22.03 | O31: 3.06
A32: № 171 Сбор.рец. На прод-ию для обуч. Во всех образ.учреж-Дели 2017 | B32: Каша гречневая рассыпчатая | C32: 150 | D32: 3.77 | E32: 2.29 | F32: 39.72 | G32: 214.00 | H32: 0.21 | I32: 0.00 | J32: 0.00 | K32: 0.40 | L32: 23.99 | M32: 207.35 | N32: 140.52 | O32: 4.71
A33: ТТК | B33: Булочка с сыром | C33: 60 | D33: 3.96 | E33: 3.25 | F33: 15.91 | G33: 78.33 | H33: 0.06 | I33: 0.07 | J33: 23.00 | K33: 2.37 | L33: 109.90 | M33: 95.00 | N33: 19.20 | O33: 0.72
A34: № 377 Сбор.рец. На прод-ию для обуч. Во всех образ.учреж-Дели 2017 | B34: Чай с сахаром, с лимоном | C34: 185/10/5 | D34: 0.11 | E34: 0.02 | F34: 10.15 | G34: 41.32 | H34: -0.00 | I34: 2.03 | J34: 0.00 | K34: 0.01 | L34: 13.25 | M34: 3.96 | N34: 2.16 | O34: 0.33
A35: Хим.состав и калорийность российских продуктов питания,табл 6, стр 144 , 2012 Дели + | B35: Хлеб ржаной | C35: 30 | D35: 1.98 | E35: 0.36 | F35: 11.88 | G35: 59.40 | H35: 0.05 | I35: 0.00 | J35: 0.00 | K35: 0.42 | L35: 8.70 | M35: 45.00 | N35: 14.10 | O35: 1.17
B36: Итого: | C36: 540 | D36: =SUM(D31:D35) -> 20.21 | E36: =SUM(E31:E35) -> 20.71 | F36: 87.96 | G36: 614.05 | H36: 0.35 | I36: 3.02 | J36: 23.00 | K36: 5.81 | L36: 177.65 | M36: 505.46 | N36: 198.01 | O36: 9.99 | P36: 25%
B43: 4 день
A44: № 52 Сбор.рец. На прод-ию для обуч. Во всех образ.учреж-Дели -2017 | B44: Салат из свеклы отварной с маслом растительным | C44: 60 | D44: 0.84 | E44: 3.61 | F44: 4.96 | G44: 55.68 | H44: 0.01 | I44: 3.99 | J44: 0.00 | K44: 1.62 | L44: 21.28 | M44: 24.38 | N44: 12.42 | O44: 0.79
A45: ТТК | B45: Котлета из мяса птицы | C45: 90 | D45: 10.20 | E45: 12.93 | F45: 13.79 | G45: 198.00 | H45: 0.09 | I45: 0.94 | J45: 46.26 | K45: 2.52 | L45: 47.83 | M45: 85.09 | N45: 18.72 | O45: 1.26
A46: № 312 Сбор.рец. На прод-ию для обуч. Во всех образ.учреж-Дели -2017 | B46: Пюре картофельное с маслом сливочным | C46: 150/3 | D46: 4.11 | E46: 3.55 | F46: 30.79 | G46: 202.80 | H46: 0.19 | I46: 24.21 | J46: 12.00 | K46: 0.27 | L46: 50.02 | M46: 116.36 | N46: 37.00 | O46: 1.35
A47: № 376 Сбор.рец. На прод-ию для обуч. Во всех образ.учреж-Дели 2017 | B47: Чай с сахаром, с яблоком | C47: 180/10/10 | D47: 0.11 | E47: 0.06 | F47: 10.98 | G47: 44.70 | H47: 0.00 | I47: 1.03 | J47: 0.00 | K47: 0.02 | L47: 12.55 | M47: 3.90 | N47: 2.30 | O47: 0.48
A48: Хим.состав и калорийность российских продуктов питания табл 6 стр 134 , 2012 Дели + | B48: Хлеб пшеничный | C48: 20 | D48: 1.52 | E48: 0.16 | F48: 9.84 | G48: 47.00 | H48: 0.02 | I48: 0.00 | J48: 0.00 | K48: 0.22 | L48: 4.00 | M48: 13.00 | N48: 2.80 | O48: 0.22
A49: Хим.состав и калорийность российских продуктов питания,табл 6, стр 144 , 2012 Дели + | B49: Хлеб ржаной | C49: 30 | D49: 1.98 | E49: 0.36 | F49: 11.88 | G49: 59.40 | H49: 0.05 | I49: 0.00 | J49: 0.00 | K49: 0.42 | L49: 8.70 | M49: 45.00 | N49: 14.10 | O49: 1.17
B50: Итого: | C50: 553 | D50: =D44+D45+D46+D47+D48+D49 -> 18.76 | E50: =E44+E45+E46+E47+E48+E49 -> 20.66 | F50: 82.24 | G50: 607.58 | H50: 0.36 | I50: 30.17 | J50: 58.26 | K50: 5.07 | L50: 144.37 | M50: 287.73 | N50: 87.34 | O50: 5.28 | P50: 25%
B52: 5 день
A53: Хим.состав и калорийность российских продуктов питания табл 9 стр 184 , 2012 Дели + | B53: Плоды и ягоды свежие (яблоки) | C53: 100 | D53: 0.40 | E53: 0.40 | F53: 9.80 | G53: 47.00 | H53: 0.03 | I53: 10.00 | K53: 0.20 | L53: 16.00 | M53: 11.00 | N53: 9.00 | O53: 2.20
A54: № 15 Сбор.рец. На прод-ию для обуч. Во всех образ.учреж-Дели 2017 | B54: Сыр порционно | C54: 15 | D54: 3.95 | E54: 3.99 | F54: 0.00 | G54: 51.50 | H54: 0.01 | I54: 0.11 | J54: 31.50 | K54: 0.06 | L54: 150.00 | M54: 90.00 | N54: 8.25 | O54: 0.11
A55: № 390,391,392 Сбор.рец. На прод-ию для обуч. Во всех образ.учреж-Дели 2017 | B55: Пельмени мясные отварные с маслом сливочным | C55: 150/5 | D55: 8.79 | E55: 11.20 | F55: 31.40 | G55: 295.65 | H55: 0.15 | I55: 0.32 | J55: 37.70 | K55: 1.28 | L55: 26.34 | M55: 137.15 | N55: 34.66 | O55: 1.26
A56: № 379 Сбор.рец. На прод-ию для обуч. Во всех образ.учреж-Дели 2017 | B56: Кофейный напиток с молоком (сахар 20г) | C56: 200 | D56: 3.17 | E56: 2.68 | F56: 15.95 | G56: 100.60 | H56: 0.04 | I56: 1.30 | J56: 20.00 | K56: 0.00 | L56: 125.78 | M56: 90.00 | N56: 14.00 | O56: 0.13
A57: Хим.состав и калорийность российских продуктов питания табл 6 стр 134 , 2012 Дели + | B57: Хлеб пшеничный | C57: 25 | D57: 1.90 | E57: 0.20 | F57: 12.30 | G57: 58.75 | H57: 0.03 | I57: 0.00 | J57: 0.00 | K57: 0.28 | L57: 5.00 | M57: 16.25 | N57: 3.50 | O57: 0.28
A58: Хим.состав и калорийность российских продуктов питания,табл 6, стр 144 , 2012 Дели + | B58: Хлеб ржаной | C58: 30 | D58: 1.98 | E58: 0.36 | F58: 11.88 | G58: 59.40 | H58: 0.05 | I58: 0.00 | J58: 0.00 | K58: 0.42 | L58: 8.70 | M58: 45.00 | N58: 14.10 | O58: 1.17
C59: 525 | D59: =SUM(D53:D58) -> 20.18 | E59: =SUM(E53:E58) -> 18.83 | F59: 81.33 | G59: 612.90 | H59: 0.31 | I59: 11.72 | J59: 89.20 | K59: 2.24 | L59: 331.82 | M59: 389.40 | N59: 83.51 | O59: 5.15 | P59: 25%
B61: 6 день
A62: № 47 Сбор.рец. На прод-ию для обуч. Во всех образ.учреж-Дели -2017 | B62: Салат из квашеной капусты | C62: 60 | D62: 1.02 | E62: 3.00 | F62: 5.07 | G62: 51.42 | H62: 0.01 | I62: 11.89 | J62: 0.00 | K62: 9.24 | L62: 31.35 | M62: 20.37 | N62: 9.61 | O62: 0.40
A63: № 234 Сбор.рец. На прод-ию для обуч. Во всех образ.учреж-Дели 2015 | B63: Биточки рыбные | C63: 90 | D63: 13.17 | E63: 10.70 | F63: 15.79 | G63: 193.30 | H63: 0.09 | I63: 0.94 | J63: 46.26 | K63: 2.52 | L63: 47.83 | M63: 85.09 | N63: 18.72 | O63: 1.26
A64: № 302 Сбор.рец. На прод-ию для обуч. Во всех образ.учреж-Дели 2015 | B64: Рис отварной рассыпчатый с маслом сливочным | C64: 150/3 | D64: 3.63 | E64: 6.50 | F64: 37.58 | G64: 223.35 | H64: 0.03 | I64: 0.00 | J64: 12.00 | K64: 0.29 | L64: 6.03 | M64: 78.81 | N64: 25.46 | O64: 0.53
A65: № 377 Сбор.рец. На прод-ию для обуч. Во всех образ.учреж-Дели 2017 | B65: Чай с сахаром, с лимоном | C65: 185/10/5 | D65: 0.11 | E65: 0.02 | F65: 10.15 | G65: 41.32 | H65: -0.00 | I65: 2.03 | J65: 0.00 | K65: 0.01 | L65: 13.25 | M65: 3.96 | N65: 2.16 | O65: 0.33
A66: Хим.состав и калорийность российских продуктов питания,табл 6, стр 144 , 2012 Дели + | B66: Хлеб ржаной | C66: 30 | D66: 1.98 | E66: 0.36 | F66: 11.88 | G66: 59.40 | H66: 0.05 | I66: 0.00 | J66: 0.00 | K66: 0.42 | L66: 8.70 | M66: 45.00 | N66: 14.10 | O66: 1.17
B67: Итого: | C67: 533 | D67: =SUM(D62:D66) -> 19.91 | E67: =SUM(E62:E66) -> 20.58 | F67: 80.47 | G67: 568.79 | H67: 0.18 | I67: 14.85 | J67: 58.26 | K67: 12.48 | L67: 107.15 | M67: 233.23 | N67: 70.04 | O67: 3.69 | P67: 25%
B68: Итого за 6 дней 1 недели: | C68: =C20+C27+C36+C50+C59+C67 -> 3226 | D68: 115.28 | E68: 116.11 | F68: 486.58 | G68: 3478.28 | H68: 1.69 | I68: 72.30 | J68: 359.56 | K68: 32.83 | L68: 1089.90 | M68: 1948.07 | N68: 580.95 | O68: 33.72
B80: 2-ая неделя
B81: 1 день
A82: ТТК | B82: Птица запеченная | C82: 100 | D82: 9.93 | E82: 11.02 | F82: 0.06 | G82: 144.80 | H82: 0.06 | I82: 1.36 | J82: 53.60 | K82: 0.84 | L82: 43.50 | M82: 228.40 | N82: 24.64 | O82: 1.08
A83: № 182 Сбор.рец. На прод-ию для обуч. Во всех образ.учреж-Дели 2017 | B83: Каша пшенная молочная с маслом сливочным | C83: 180/3 | D83: 4.09 | E83: 5.08 | F83: 37.26 | G83: 216.90 | H83: 0.17 | I83: 1.05 | J83: 28.20 | K83: 0.13 | L83: 122.85 | M83: 164.13 | N83: 42.84 | O83: 1.10
A84: № 376 Сбор.рец. На прод-ию для обуч. Во всех образ.учреж-Дели 2017 | B84: Чай "Витаминный" с шиповником | C84: 185/10/5 | D84: 0.24 | E84: 0.09 | F84: 12.43 | G84: 54.20 | H84: 0.00 | I84: 50.03 | J84: 0.00 | K84: 0.19 | L84: 13.95 | M84: 3.65 | N84: 2.25 | O84: 0.42
A85: ТТК | B85: Плюшка с сахаром | C85: 60 | D85: 3.95 | E85: 4.06 | F85: 26.22 | G85: 141.50 | H85: 0.57 | I85: 0.00 | J85: 7.00 | K85: 1.63 | L85: 11.20 | M85: 38.30 | N85: 14.20 | O85: 0.70
A86: Хим.состав и калорийность российских продуктов питания,табл 6, стр 144 , 2012 Дели + | B86: Хлеб ржаной | C86: 30 | D86: 1.98 | E86: 0.36 | F86: 11.88 | G86: 59.40 | H86: 0.05 | I86: 0.00 | J86: 0.00 | K86: 0.42 | L86: 8.70 | M86: 45.00 | N86: 14.10 | O86: 1.17
B87: Итого: | C87: 573 | D87: =SUM(D82:D86) -> 20.18 | E87: =SUM(E82:E86) -> 20.61 | F87: 87.85 | G87: 616.80 | H87: 0.86 | I87: 52.44 | J87: 88.80 | K87: 3.21 | L87: 200.20 | M87: 479.48 | N87: 98.03 | O87: 4.46 | P87: 25%
B89: 2 день
A90: Хим.состав и калорийность российских продуктов питания табл 9 стр 184 , 2012 Дели + | B90: Плоды и ягоды свежие (яблоки) | C90: 100 | D90: 0.40 | E90: 0.40 | F90: 9.80 | G90: 47.00 | H90: 0.03 | I90: 10.00 | K90: 0.20 | L90: 16.00 | M90: 11.00 | N90: 9.00 | O90: 2.20
A91: № 265 Сбор.рец. На прод-ию для обуч. Во всех образ.учреж-Дели -2017 | B91: Плов из говядины с рисовой крупой | C91: 50/150 | D91: 15.95 | E91: 19.55 | F91: 39.75 | G91: 408.42 | H91: 0.04 | I91: 0.27 | J91: 0.00 | K91: 4.23 | L91: 29.33 | M91: 176.23 | N91: 40.58 | O91: 2.64
A92: № 376 Сбор.рец. На прод-ию для обуч. Во всех образ.учреж-Дели 2017 | B92: Чай с сахаром | C92: 190/10 | D92: 0.07 | E92: 0.02 | F92: 10.01 | G92: 40.00 | H92: 0.00 | I92: 0.03 | J92: 0.00 | K92: 0.00 | L92: 10.95 | M92: 2.80 | N92: 1.40 | O92: 0.27
A93: Хим.состав и калорийность российских продуктов питания табл 6 стр 134 , 2012 Дели + | B93: Хлеб пшеничный | C93: 25 | D93: 1.90 | E93: 0.20 | F93: 12.30 | G93: 58.75 | H93: 0.03 | I93: 0.00 | J93: 0.00 | K93: 0.28 | L93: 5.00 | M93: 16.25 | N93: 3.50 | O93: 0.28
A94: Хим.состав и калорийность российских продуктов питания,табл 6, стр 144 , 2012 Дели + | B94: Хлеб ржаной | C94: 20 | D94: 1.32 | E94: 0.24 | F94: 7.92 | G94: 39.60 | H94: 0.03 | I94: 0.00 | J94: 0.00 | K94: 0.28 | L94: 5.80 | M94: 30.00 | N94: 9.40 | O94: 0.78
B95: Итого: | C95: 545 | D95: =SUM(D90:D94) -> 19.64 | E95: =SUM(E90:E94) -> 20.41 | F95: 79.78 | G95: 593.77 | H95: 0.13 | I95: 10.30 | J95: 0.00 | K95: 4.98 | L95: 67.08 | M95: 236.28 | N95: 63.88 | O95: 6.16 | P95: 25%
B97: 3 день
A98: № 229 Сбор.рец. На прод-ию для обуч. Во всех образ.учреж-Дели 2017 | B98: Рыба, тушенная в томате с овощами | C98: 50/50 | D98: 9.05 | E98: 6.09 | F98: 3.80 | G98: 105.00 | H98: 0.05 | I98: 3.73 | J98: 5.82 | K98: 2.52 | L98: 39.07 | M98: 162.19 | N98: 48.53 | O98: 0.85
A99: № 312 Сбор.рец. На прод-ию для обуч. Во всех образ.учреж-Дели -2017 | B99: Пюре картофельное | C99: 150 | D99: 3.09 | E99: 6.98 | F99: 20.48 | G99: 157.05 | H99: 0.14 | I99: 18.16 | J99: 12.00 | K99: 0.21 | L99: 37.70 | M99: 87.50 | N99: 27.75 | O99: 1.02
A100: № 321 Сбор.рец. На прод-ию для обуч. Во всех образ.учреж-Дели -2017 | B100: Капуста тушеная (доп. гарнир) | C100: 50 | D100: 1.03 | E100: 1.62 | F100: 4.71 | G100: 37.55 | H100: 0.01 | I100: 8.58 | J100: 0.00 | K100: 0.87 | L100: 27.73 | M100: 20.07 | N100: 10.33 | O100: 0.40
A101: №342 Сбор.рец. На прод-ию для обуч. Во всех образ.учреж-Дели 2017 | B101: Компот из свежих яблок (75С) | C101: 200 | D101: 0.16 | E101: 0.16 | F101: 17.90 | G101: 74.60 | H101: 0.01 | I101: 0.90 | J101: 0.00 | K101: 0.08 | L101: 13.88 | M101: 4.40 | N101: 5.14 | O101: 0.92
A102: Хим.состав и калорийность российских продуктов питания табл 6 стр 134 , 2012 Дели + | B102: Хлеб пшеничный | C102: 35 | D102: 2.66 | E102: 0.28 | F102: 17.22 | G102: 82.25 | H102: 0.04 | I102: 0.00 | J102: 0.00 | K102: 0.39 | L102: 7.00 | M102: 22.75 | N102: 4.90 | O102: 0.39
B103: Итого: | C103: 538 | D103: =SUM(D98:D102) -> 15.99 | E103: =SUM(E98:E102) -> 15.13 | F103: 64.11 | G103: 456.45 | H103: 0.25 | I103: 31.37 | J103: 17.82 | K103: 4.06 | L103: 125.37 | M103: 296.91 | N103: 96.65 | O103: 3.58 | P103: 20%
B110: 4 день
A111: ТТК | B111: Тефтели куриные с гречневой крупой в сметанно-томатном соусе | C111: 60/40 | D111: 3.17 | E111: 5.19 | F111: 9.85 | G111: 118.01 | H111: 0.07 | I111: 0.28 | J111: 29.62 | K111: 0.46 | L111: 21.68 | M111: 92.80 | N111: 26.56 | O111: 1.04
A112: № 203 Сбор.рец. На прод-ию для обуч. Во всех образ.учреж-Дели 2017 | B112: Макаронные изделия отварные с маслом сливочным | C112: 180/3 | D112: 6.64 | E112: 7.60 | F112: 31.78 | G112: 221.94 | H112: 0.07 | I112: 0.00 | J112: 12.00 | K112: 1.19 | L112: 6.55 | M112: 45.50 | N112: 25.34 | O112: 1.33
A113: № 382 Сбор.рец. На прод-ию для обуч. Во всех образ.учреж-Дели 2017 | B113: Какао с молоком | C113: 200 | D113: 4.08 | E113: 3.54 | F113: 7.60 | G113: 78.60 | H113: 0.06 | I113: 1.59 | J113: 24.40 | K113: 0.00 | L113: 151.92 | M113: 124.56 | N113: 21.34 | O113: 0.45
A114: Хим.состав и калорийность российских продуктов питания табл 6 стр 134 , 2012 Дели + | B114: Хлеб пшеничный | C114: 30 | D114: 2.28 | E114: 0.24 | F114: 14.76 | G114: 70.50 | H114: 0.03 | I114: 0.00 | J114: 0.00 | K114: 0.33 | L114: 6.00 | M114: 19.50 | N114: 4.20 | O114: 0.33
B115: Итого: | C115: 513 | D115: =D111+D112+D113+D114 -> 16.17 | E115: 16.57 | F115: 63.98 | G115: 489.05 | H115: 0.22 | I115: 1.86 | J115: 66.02 | K115: 1.98 | L115: 186.15 | M115: 282.37 | N115: 77.44 | O115: 3.15 | P115: 20%
B117: 5 день
A118: № 143,241 Сбор.рец. На прод-ию для обуч. Во всех образ.учреж-Дели 2017 | B118: Овощи тушеные с мясом | C118: 50/150 | D118: 12.48 | E118: 15.68 | F118: 19.34 | G118: 271.50 | H118: 0.12 | I118: 18.77 | J118: 39.00 | K118: 4.67 | L118: 59.15 | M118: 148.63 | N118: 39.69 | O118: 2.23
A119: №349 Сбор.рец. На прод-ию для обуч. Во всех образ.учреж-Дели 2017 | B119: Компот из сухофруктов (75С) | C119: 200 | D119: 0.66 | E119: 0.09 | F119: 22.03 | G119: 92.80 | H119: 0.02 | I119: 0.73 | J119: 0.00 | K119: 0.51 | L119: 32.18 | M119: 23.44 | N119: 17.46 | O119: 0.67
A120: №410 Сбор.рец. На прод-ию для обуч. Во всех образ.учреж-Дели 2017 | B120: Ватрушка с повидлом | C120: 75 | D120: 4.46 | E120: 2.98 | F120: 31.80 | G120: 182.00 | H120: 0.08 | I120: 0.08 | J120: 18.00 | K120: 0.86 | L120: 15.60 | M120: 42.80 | N120: 17.40 | O120: 1.08
A121: Хим.состав и калорийность российских продуктов питания табл 6 стр 134 , 2012 Дели + | B121: Хлеб пшеничный | C121: 30 | D121: 2.28 | E121: 0.24 | F121: 14.76 | G121: 70.50 | H121: 0.03 | I121: 0.00 | J121: 0.00 | K121: 0.33 | L121: 6.00 | M121: 19.50 | N121: 4.20 | O121: 0.33
B122: Итого: | C122: 505 | D122: =SUM(D118:D121) -> 19.88 | E122: =SUM(E118:E121) -> 18.99 | F122: 87.93 | G122: 616.80 | H122: 0.25 | I122: 19.57 | J122: 57.00 | K122: 6.37 | L122: 112.93 | M122: 234.37 | N122: 78.75 | O122: 4.30 | P122: 25%
B124: 6 день
A125: Хим.состав и калорийность российских продуктов питания табл 9 стр 184 , 2012 Дели + | B125: Плоды и ягоды свежие (яблоки) | C125: 100 | D125: 0.40 | E125: 0.40 | F125: 9.80 | G125: 47.00 | H125: 0.03 | I125: 10.00 | K125: 0.20 | L125: 16.00 | M125: 11.00 | N125: 9.00 | O125: 2.20
A126: ТТК | B126: Котлеты "Аппетитные" | C126: 90 | D126: 12.90 | E126: 13.15 | F126: 13.45 | G126: 214.20 | H126: 0.12 | I126: 0.41 | J126: 6.21 | K126: 32.29 | L126: 30.51 | M126: 109.69 | N126: 23.76 | O126: 2.83
A127: № 171 Сбор.рец. На прод-ию для обуч. Во всех образ.учреж-Дели 2017 | B127: Каша гречневая рассыпчатая с маслом сливочным | C127: 150/3 | D127: 3.79 | E127: 4.47 | F127: 39.76 | G127: 233.80 | H127: 0.21 | I127: 0.00 | J127: 0.00 | K127: 0.40 | L127: 24.89 | M127: 208.07 | N127: 140.52 | O127: 4.78
A128: № 377 Сбор.рец. На прод-ию для обуч. Во всех образ.учреж-Дели 2017 | B128: Чай с сахаром, с лимоном | C128: 185/10/5 | D128: 0.11 | E128: 0.02 | F128: 10.15 | G128: 41.32 | H128: -0.00 | I128: 2.03 | J128: 0.00 | K128: 0.01 | L128: 13.25 | M128: 3.96 | N128: 2.16 | O128: 0.33
A129: Хим.состав и калорийность российских продуктов питания табл 6 стр 134 , 2012 Дели + | B129: Хлеб пшеничный | C129: 30 | D129: 2.28 | E129: 0.24 | F129: 14.76 | G129: 70.50 | H129: 0.03 | I129: 0.00 | J129: 0.00 | K129: 0.33 | L129: 6.00 | M129: 19.50 | N129: 4.20 | O129: 0.33
B130: Итого: | C130: 573 | D130: =SUM(D125:D129) -> 19.49 | E130: =SUM(E125:E129) -> 18.28 | F130: 87.92 | G130: 606.82 | H130: 0.39 | I130: 12.44 | J130: 6.21 | K130: 33.23 | L130: 90.65 | M130: 352.22 | N130: 179.64 | O130: 10.47 | P130: 25%
B131: Итого за 6 дней 2 недели: | C131: =C87+C95+C103+C115+C122+C130 -> 3247 | D131: 111.3422333 | E131: 109.987 | F131: 471.5668 | G131: 3379.686667 | H131: 2.098816667 | I131: 127.9797 | J131: 235.85 | K131: 53.82445 | L131: 782.3756667 | M131: 1881.625833 | N131: 594.3903333 | O131: 32.12506667
B132: ВСЕГО за 12 дней: | C132: =C20+C27+C36+C50+C59+C67+C87+C95+C103+C115+C122+C130 -> 6473 | D132: 226.63 | E132: 226.10 | F132: 958.15 | G132: 6857.97 | H132: 3.79 | I132: 200.28 | J132: 595.41 | K132: 86.65 | L132: 1872.27 | M132: 3829.70 | N132: 1175.34 | O132: 65.84
B133: В среднем на 1 учащегося в день: | C133: =C132/12 -> 539 | D133: =D132/12 -> 18.89 | E133: 18.84 | F133: 79.85 | G133: 571.50 | H133: 0.32 | I133: 16.69 | J133: 49.62 | K133: 7.22 | L133: 156.02 | M133: 319.14 | N133: 97.95 | O133: 5.49 | P133: 25%
